bitfinex/quotes_SOLUSD_20241001
["timestamp","ask_amount","ask_price","bid_price","bid_amount"]
[1727813857876,6.9415,144.06,144.05,16.1949]
[1727813858195,23.776884,144.11,144.01,16.4085]
[1727813858196,6.9421,144.05,144.01,16.4085]
[1727813858577,6.9431,144.03,144.01,16.4085]
[1727813858808,6.9416,144.06,144.01,16.4085]
[1727813859153,20.0,144.09,144.01,16.4085]
[1727813859388,6.9406,144.08,144.01,16.4085]
[1727813859587,26.94,144.1,144.01,16.4085]
[1727813859792,6.9402,144.09,144.01,16.4085]
[1727813860374,20.0,144.1,144.01,16.4085]
[1727813860593,6.9406,144.08,144.01,16.4085]
[1727813860800,6.9401,144.09,144.01,16.4085]
[1727813860975,6.9405,144.08,144.01,16.4085]
[1727813861179,43.776884,144.12,144.01,16.4085]
[1727813861389,43.776884,144.09,144.01,16.4085]
[1727813861778,6.9425,144.05,144.01,16.4085]
[1727813861984,6.9427,144.04,144.01,16.4085]
[1727813862186,6.943,144.03,144.01,16.4085]
[1727813862504,20.0,144.07,144.01,16.4085]
[1727813863000,6.9424,144.05,144.01,16.4085]
[1727813863695,6.9434,144.02,144.01,16.4085]
[1727813863901,20.0,144.05,143.97,15.4616]
[1727813864099,23.776884,144.06,143.97,15.4616]
[1727813864404,6.9459,143.97,143.9,23.50233369]
[1727813864581,43.776884,144.03,143.9,22.1131]
[1727813864780,6.9468,143.95,143.9,22.1131]
[1727813864984,43.776884,143.99,143.9,22.1131]
[1727813865284,43.776884,143.99,143.83,0.5651878]
[1727813865285,6.9493,143.9,143.86,15.5396]
[1727813865494,6.9497,143.89,143.86,15.5396]
[1727813865793,20.0,143.93,143.86,15.5396]
[1727813865996,37.3662,143.96,143.86,15.5396]
[1727813865997,23.776884,143.95,143.86,15.5396]
[1727813866204,20.0,143.94,143.86,15.5396]
[1727813866696,20.0,143.96,143.86,15.5396]
[1727813866996,23.776884,143.95,143.86,15.5396]
[1727813867179,6.9483,143.92,143.86,15.5396]
[1727813867494,6.9478,143.93,143.86,15.5396]
[1727813867698,26.9473,143.94,143.86,15.5396]
[1727813868191,6.9482,143.93,143.86,15.5396]
[1727813868374,6.9463,143.97,143.86,15.5396]
[1727813868577,20.0,143.97,143.86,15.5396]
[1727813868792,20.0,143.95,143.86,15.5396]
[1727813869793,6.9468,143.96,143.87,63.2848486]
[1727813869994,6.9473,143.94,143.86,15.5396]
[1727813870717,6.9479,143.93,143.86,15.5396]
[1727813871194,20.0,143.95,143.86,15.5396]
[1727813871398,6.9491,143.91,143.86,15.5396]
[1727813873210,20.0,143.92,143.86,15.5396]
[1727813873889,20.0,143.95,143.86,15.5396]
[1727813874098,6.9489,143.91,143.86,15.5396]
[1727813874588,6.9493,143.9,143.86,15.5396]
[1727813874991,23.776884,143.94,143.86,15.5396]
[1727813875190,6.9507,143.87,143.86,15.5396]
[1727813875603,6.9507,143.87,143.83,0.5651878]
[1727813875910,23.713,143.93,143.83,0.5651878]
[1727813875911,6.9502,143.88,143.83,0.5651878]
[1727813876136,23.776884,143.92,143.83,0.5651878]
[1727813876288,20.0,143.91,143.83,0.5651878]
[1727813876713,20.0,143.95,143.83,0.5651878]
[1727813876918,20.0,143.95,143.84,1.390216]
[1727813877112,20.0,143.95,143.83,0.5651878]
[1727813877614,6.9494,143.9,143.83,0.5651878]
[1727813878005,6.9472,143.95,143.84,1.39030049]
[1727813878196,6.9475,143.94,143.83,63.8500364]
[1727813878394,6.9478,143.93,143.83,63.8500364]
[1727813878791,6.9473,143.94,143.84,1.39004316]
[1727813878992,6.9478,143.93,143.83,63.8500364]
[1727813879195,17.3653,143.97,143.83,63.8500364]
[1727813879410,6.9474,143.94,143.83,63.8500364]
[1727813879597,6.9474,143.94,143.83,39.5906338]
[1727813879803,53.08637305,144.01,143.83,39.5906338]
[1727813880103,68.97673341,144.01,143.83,39.5906338]
[1727813880300,6.9478,143.93,143.83,39.5906338]
[1727813880493,6.9478,143.93,143.84,1.39004502]
[1727813880804,23.776884,143.97,143.83,39.5906338]
[1727813881018,20.0,143.94,143.83,39.5906338]
[1727813881217,6.9504,143.88,143.83,0.5651878]
[1727813881403,6.9513,143.86,143.83,0.5651878]
[1727813881726,6.9508,143.87,143.83,0.5651878]
[1727813881897,20.0,143.89,143.83,0.5651878]
[1727813882502,6.9503,143.88,143.83,0.5651878]
[1727813882921,23.776884,143.89,143.83,0.5651878]
[1727813883119,6.9508,143.87,143.83,0.5651878]
[1727813883300,23.776884,143.89,143.83,0.5651878]
[1727813883506,6.9512,143.86,143.83,0.5651878]
[1727813884117,6.9507,143.87,143.83,0.5651878]
[1727813884325,6.9513,143.86,143.83,0.5651878]
[1727813884508,6.952,143.85,143.83,0.5651878]
[1727813885019,6.9521,143.84,143.83,0.5651878]
[1727813885406,6.952,143.85,143.83,0.5651878]
[1727813885621,20.0,143.87,143.83,0.5651878]
[1727813886323,6.952,143.85,143.83,0.5651878]
[1727813887308,6.9521,143.84,143.83,0.5651878]
[1727813887630,30.728984,143.84,143.83,0.5651878]
[1727813887811,20.0,143.84,143.83,0.5651878]
[1727813888126,6.9517,143.85,143.83,0.5651878]
[1727813888506,6.951,143.87,143.83,0.5651878]
[1727813888826,20.0,143.89,143.83,0.5651878]
[1727813889011,6.9517,143.85,143.83,0.5651878]
[1727813889326,20.0,143.89,143.83,0.5651878]
[1727813889811,25.8167327,143.96,143.83,0.5651878]
[1727813890024,6.9473,143.95,143.85,6.1579]
[1727813890328,6.9468,143.95,143.85,69.63457275]
[1727813890511,17.3631,143.99,143.85,69.63457275]
[1727813890716,7.24156661,144.01,143.88,63.47667275]
[1727813890916,18.56516759,144.05,143.92,22.2479]
[1727813891122,6.9439,144.02,143.92,22.2479]
[1727813891317,7.24084326,144.04,143.92,22.2479]
[1727813891727,15.85733786,144.04,143.92,22.2479]
[1727813891916,6.946,143.97,143.92,22.2479]
[1727813892108,17.3597,144.02,143.92,22.2479]
[1727813892608,4.94712727,144.03,143.92,22.2479]
[1727813892813,6.9453,143.99,143.92,22.2479]
[1727813893219,6.9445,144.0,143.92,22.2479]
[1727813893420,6.9445,144.0,143.93,1.38939272]
[1727813893633,6.9445,144.0,143.92,22.2479]
[1727813893826,17.3576,144.03,143.92,22.2479]
[1727813894031,20.0,144.02,143.92,22.2479]
[1727813894736,23.776884,143.99,143.92,16.0608]
[1727813894910,20.0,143.98,143.92,16.0608]
[1727813895235,20.0,143.94,143.87,15.9657]
[1727813895811,20.0,143.97,143.87,15.9657]
[1727813896127,20.0,143.95,143.87,15.9657]
[1727813896330,23.776884,143.94,143.87,15.9657]
[1727813896517,6.9496,143.9,143.87,15.9657]
[1727813897720,20.0,143.91,143.87,15.9657]
[1727813897916,6.9497,143.89,143.87,15.9657]
[1727813898421,6.9502,143.88,143.87,15.9657]
[1727813898628,6.9498,143.89,143.87,15.9657]
[1727813898937,20.0,143.89,143.83,0.5651878]
[1727813899130,23.776884,143.88,143.83,0.5651878]
[1727813899333,6.9507,143.87,143.83,0.5651878]
[1727813900733,6.9493,143.9,143.83,1.95574597]
[1727813901812,20.0,143.92,143.83,0.5651878]
[1727813902331,6.9511,143.87,143.83,0.5651878]
[1727813902544,6.9502,143.88,143.83,0.5651878]
[1727813903035,43.776884,143.9,143.83,0.5651878]
[1727813903214,6.9521,143.84,143.83,0.5651878]
[1727813903421,50.728984,143.84,143.83,0.5651878]
[1727813904117,17.3737,143.9,143.83,0.5651878]
[1727813904320,6.9497,143.89,143.83,0.5651878]
[1727813904516,6.9493,143.9,143.83,0.5651878]
[1727813904714,6.9498,143.89,143.83,0.5651878]
[1727813905039,17.3701,143.93,143.83,0.5651878]
[1727813905242,6.9508,143.87,143.83,0.5651878]
[1727813905830,6.9521,143.84,143.83,0.5651878]
[1727813906022,50.728984,143.84,143.83,0.5651878]
[1727813906223,26.9521,143.84,143.83,0.5651878]
[1727813906526,6.952,143.85,143.83,0.5651878]
[1727813906727,6.9521,143.84,143.83,0.5651878]
[1727813906943,30.728984,143.84,143.83,0.5651878]
[1727813907325,6.9521,143.84,143.83,0.5651878]
[1727813908046,43.776884,143.86,143.83,0.5651878]
[1727813908238,6.9517,143.85,143.83,0.5651878]
[1727813908551,6.9508,143.87,143.83,0.5651878]
[1727813908731,6.84252794,143.86,143.83,0.5651878]
[1727813908935,6.9513,143.86,143.83,0.5651878]
[1727813909243,6.9517,143.85,143.83,0.5651878]
[1727813910229,23.776884,143.89,143.83,0.5651878]
[1727813910230,6.9512,143.86,143.83,0.5651878]
[1727813910440,6.85655524,143.85,143.83,0.5651878]
[1727813910652,6.9521,143.84,143.83,0.5651878]
[1727813910829,26.9521,143.84,143.83,0.5651878]
[1727813911025,13.8082138,143.84,143.83,0.5651878]
[1727813911252,33.8082138,143.84,143.83,0.5651878]
[1727813911753,57.5850978,143.84,143.83,0.5651878]
[1727813912144,7.20658408,143.88,143.83,0.5651878]
[1727813912446,6.4801,143.97,143.84,39.09292541]
[1727813912631,23.8451,143.97,143.86,6.4791]
[1727813912826,17.365,143.97,143.86,6.4791]
[1727813913544,6.948,143.93,143.86,6.4791]
[1727813914050,20.0,143.96,143.86,6.4791]
[1727813914244,17.365,143.97,143.86,6.4791]
[1727813914752,34.7322,143.96,143.83,16.8453878]
[1727813915043,55.5722,143.96,143.83,16.8453878]
[1727813915266,57.5722,143.96,143.83,16.8453878]
[1727813915466,6.9518,143.85,143.83,16.8453878]
[1727813915672,6.9521,143.84,143.83,0.5651878]
[1727813916750,50.728984,143.84,143.83,0.5651878]
[1727813917786,50.728984,143.84,143.74,16.2813]
[1727813917787,6.9564,143.76,143.74,16.2813]
[1727813917958,20.0,143.8,143.7,17.3967]
[1727813918281,6.9555,143.78,143.73,6.9574]
[1727813918579,6.9551,143.78,143.73,6.9572]
[1727813919254,20.0,143.81,143.74,6.9567]
[1727813919674,6.9545,143.79,143.74,6.9567]
[1727813919972,23.776884,143.82,143.74,17.3916]
[1727813920177,6.9541,143.8,143.75,6.9564]
[1727813920369,17.3796,143.85,143.74,17.3916]
[1727813920574,23.776884,143.84,143.74,17.3916]
[1727813920777,6.953,143.83,143.78,6.9549]
[1727813921079,6.9528,143.83,143.78,6.9549]
[1727813921378,6.9527,143.83,143.78,6.9549]
[1727813921674,17.3747,143.89,143.78,17.3869]
[1727813921969,6.9513,143.86,143.82,6.953]
[1727813922559,6.9508,143.87,143.83,6.9525]
[1727813922873,6.9501,143.89,143.84,6.9517]
[1727813923461,0.55905957,143.94,143.85,6.9515]
[1727813923670,0.55905957,143.94,143.79,78.67754917]
[1727813923671,6.9503,143.88,143.84,17.3797]
[1727813923872,17.3702,143.93,143.84,24.3317]
[1727813924065,6.9488,143.91,143.86,6.9511]
[1727813924481,6.3287,143.97,143.88,6.95]
[1727813924482,6.9481,143.93,143.88,6.95]
[1727813924774,6.9484,143.92,143.87,6.9502]
[1727813924959,6.9489,143.91,143.87,6.9502]
[1727813925164,6.9489,143.91,143.86,24.3284]
[1727813925962,17.3664,143.96,143.87,6.9506]
[1727813926285,6.9481,143.93,143.89,6.9496]
[1727813926758,23.776884,143.96,143.89,6.9496]
[1727813926964,6.9469,143.95,143.91,6.9487]
[1727813927179,17.3656,143.97,143.89,15.8759]
[1727813927474,6.9479,143.93,143.89,15.8759]
[1727813927677,20.0,143.96,143.89,15.8759]
[1727813928180,6.9483,143.93,143.89,15.8759]
[1727813928387,6.9472,143.95,143.9,6.9492]
[1727813928682,20.0,143.97,143.89,15.8759]
[1727813929054,6.9474,143.94,143.89,22.8255]
[1727813929257,6.9482,143.93,143.89,15.8759]
[1727813929674,6.9474,143.94,143.9,6.9491]
[1727813930467,20.0,143.97,143.9,6.9491]
[1727813930678,26.9462,143.97,143.92,6.9479]
[1727813930907,20.0,143.98,143.9,17.3722]
[1727813931103,6.9492,143.9,143.89,15.8759]
[1727813931287,20.0,143.9,143.84,15.5752]
[1727813931671,6.9516,143.85,143.84,15.5752]
[1727813931971,6.9528,143.83,143.79,22.4063]
[1727813932369,6.9528,143.83,143.79,15.4518]
[1727813932779,6.952,143.85,143.79,15.4518]
[1727813932968,41.154184,143.87,143.79,15.4518]
[1727813932969,6.9521,143.84,143.79,22.4059]
[1727813933172,20.84,143.95,143.79,22.4059]
[1727813933173,6.9482,143.93,143.88,6.95]
[1727813933381,23.7802,143.97,143.85,17.3786]
[1727813933585,6.9517,143.85,143.8,6.954]
[1727813934118,6.9512,143.86,143.79,32.8378]
[1727813934390,6.9507,143.87,143.82,6.9527]
[1727813934603,6.9507,143.87,143.83,6.9524]
[1727813935779,6.9517,143.85,143.81,24.3366]
[1727813936085,23.776884,143.89,143.81,17.3831]
[1727813936281,6.9508,143.87,143.81,17.3831]
[1727813936591,6.9508,143.87,143.83,6.9526]
[1727813936967,20.0,143.92,143.81,24.3366]
[1727813937381,6.9525,143.84,143.79,15.4518]
[1727813937670,6.9516,143.86,143.81,6.9532]
[1727813937872,6.9516,143.86,143.82,6.9528]
[1727813938091,6.9522,143.84,143.8,17.3843]
[1727813938273,17.3753,143.89,143.8,17.3843]
[1727813938274,6.9518,143.85,143.8,17.3843]
[1727813939077,6.9513,143.86,143.8,17.3843]
[1727813939296,43.776884,143.9,143.82,17.3823]
[1727813939491,6.9531,143.82,143.79,15.4518]
[1727813939966,43.776884,143.87,143.79,15.4518]
[1727813940166,6.9536,143.81,143.79,15.4518]
[1727813940587,6.9554,143.78,143.74,15.513]
[1727813940784,6.9541,143.8,143.74,15.513]
[1727813940995,43.776884,143.84,143.75,24.3471]
[1727813941194,6.9556,143.77,143.74,15.513]
[1727813941418,20.0,143.82,143.74,15.513]
[1727813941419,6.9561,143.76,143.74,15.513]
[1727813941573,6.9565,143.75,143.74,15.513]
[1727813942273,23.776884,143.77,143.69,21.6659]
[1727813942477,6.9583,143.72,143.69,21.6659]
[1727813942798,23.776884,143.77,143.69,21.6659]
[1727813943015,20.0,143.78,143.71,6.9582]
[1727813943200,23.776884,143.77,143.7,17.3967]
[1727813943366,6.9566,143.75,143.7,24.3555]
[1727813943572,23.776884,143.77,143.69,21.6659]
[1727813943782,6.9574,143.74,143.69,21.6659]
[1727813943986,6.9574,143.74,143.69,28.6251]
[1727813944187,20.0,143.81,143.7,1.39180118]
[1727813944472,20.0,143.81,143.69,28.6252]
[1727813944473,6.9575,143.73,143.69,28.6252]
[1727813944695,6.9556,143.77,143.72,6.9578]
[1727813944878,61.161184,143.81,143.7,17.3968]
[1727813945084,6.9562,143.76,143.71,6.9583]
[1727813945690,20.0,143.83,143.69,21.6659]
[1727813945887,6.955,143.79,143.74,24.3487]
[1727813946186,52.1416,143.84,143.74,17.3918]
[1727813946187,6.9551,143.78,143.74,17.3918]
[1727813946397,52.1416,143.84,143.69,21.6659]
[1727813946398,17.3837,143.82,143.71,17.3955]
[1727813946799,6.9544,143.8,143.75,6.9563]
[1727813946985,17.3837,143.82,143.73,17.3931]
[1727813947300,6.956,143.76,143.7,17.3968]
[1727813948093,6.956,143.76,143.71,6.9579]
[1727813948302,17.3837,143.82,143.74,6.9569]
[1727813948303,6.9547,143.79,143.74,6.9569]
[1727813948482,23.776884,143.81,143.72,17.3941]
[1727813948678,6.9551,143.78,143.73,6.9573]
[1727813948883,23.776884,143.79,143.72,17.3941]
[1727813949201,20.0,143.78,143.72,17.3941]
[1727813949385,20.0,143.79,143.72,17.3941]
[1727813949701,6.9563,143.76,143.72,17.3941]
[1727813950301,23.776884,143.78,143.69,39.064]
[1727813950510,23.776884,143.78,143.69,32.5385]
[1727813950511,6.9578,143.73,143.69,32.5385]
[1727813950709,23.776884,143.76,143.69,39.4975]
[1727813950710,6.957,143.74,143.69,39.4975]
[1727813951084,6.957,143.74,143.7,6.9587]
[1727813951509,6.957,143.74,143.69,39.4978]
[1727813952082,23.776884,143.76,143.69,15.1404]
[1727813952290,23.776884,143.76,143.68,0.8185366]
[1727813952291,6.9594,143.69,143.68,0.8185366]
[1727813953098,50.736284,143.69,143.68,0.8185366]
[1727813953289,50.736284,143.69,143.57,15.579]
[1727813953290,43.776884,143.69,143.57,15.579]
[1727813953488,6.9628,143.62,143.57,22.5441]
[1727813953687,43.776884,143.67,143.58,17.4118]
[1727813953913,6.9627,143.63,143.58,24.3765]
[1727813954081,43.776884,143.67,143.58,24.3765]
[1727813954082,6.9629,143.62,143.58,17.4118]
[1727813954285,15.623,143.66,143.44,15.3148106]
[1727813954517,6.9662,143.55,143.44,15.3148106]
[1727813954709,6.9674,143.53,143.45,36.9708]
[1727813955013,20.0,143.56,143.45,36.9708]
[1727813955014,20.0,143.56,143.48,17.741948]
[1727813955191,20.0,143.54,143.48,0.318448]
[1727813955385,26.9669,143.54,143.48,0.318448]
[1727813955609,20.0,143.54,143.48,0.318448]
[1727813955785,23.776884,143.53,143.48,0.318448]
[1727813955992,23.776884,143.55,143.48,0.318448]
[1727813956206,20.0,143.49,143.48,0.318448]
[1727813956502,23.776884,143.49,143.48,0.318448]
[1727813956684,6.9689,143.5,143.48,0.318448]
[1727813956685,23.776884,143.55,143.48,0.318448]
[1727813957209,6.9654,143.57,143.48,0.318448]
[1727813957412,6.9658,143.56,143.49,6.9689]
[1727813957703,6.5048,143.63,143.51,17.4203]
[1727813957910,6.3717,143.68,143.51,17.4203]
[1727813958084,6.3717,143.68,143.49,63.48984917]
[1727813958288,6.9634,143.61,143.55,17.4154]
[1727813958510,6.3717,143.68,143.55,17.4154]
[1727813958807,6.3717,143.68,143.54,17.4161]
[1727813958997,1.21083993,143.71,143.51,63.48984917]
[1727813959199,1.21083993,143.71,143.5,98.33074917]
[1727813959200,8.16943993,143.71,143.62,6.9625]
[1727813959387,6.0506,143.74,143.62,17.4062]
[1727813959585,6.9581,143.72,143.64,6.9616]
[1727813959803,6.9579,143.73,143.65,6.961]
[1727813960005,9.22359707,143.77,143.63,15.2325]
[1727813960006,8.01208077,143.77,143.63,15.2325]
[1727813960218,1.21144165,143.74,143.63,15.2325]
[1727813960410,6.9607,143.67,143.63,15.2325]
[1727813960593,8.55446749,143.72,143.56,16.05]
[1727813960794,6.961,143.66,143.58,6.9645]
[1727813960999,9.0183331,143.71,143.56,33.4641]
[1727813961198,50.738884,143.64,143.56,33.4641]
[1727813961397,23.776884,143.71,143.56,33.4641]
[1727813961616,6.9605,143.67,143.56,33.4641]
[1727813961800,13.98156015,143.73,143.6,17.4093]
[1727813962001,8.43863052,143.73,143.6,17.4093]
[1727813962427,6.9596,143.69,143.6,17.4093]
[1727813962606,6.9585,143.71,143.6,17.4093]
[1727813962808,14.18423919,143.73,143.65,6.9612]
[1727813963112,6.9595,143.69,143.61,6.9629]
[1727813963617,7.22479365,143.74,143.66,6.9606]
[1727813963827,7.22479365,143.74,143.64,24.366]
[1727813964115,6.9572,143.74,143.64,17.4043]
[1727813964295,14.1798516,143.77,143.69,6.9591]
[1727813964495,0.55905957,143.83,143.68,17.3997]
[1727813964708,6.9552,143.78,143.69,6.9591]
[1727813964909,7.77960533,143.83,143.65,15.7137]
[1727813965113,17.3905,143.76,143.65,15.7137]
[1727813965511,6.9601,143.68,143.65,15.7137]
[1727813965694,8.01208077,143.75,143.65,15.7137]
[1727813965900,6.9604,143.67,143.59,15.1833]
[1727813966196,6.9637,143.61,143.59,15.1833]
[1727813966595,6.9637,143.61,143.53,17.4176]
[1727813966596,6.965,143.58,143.53,15.9676]
[1727813966816,6.9639,143.6,143.53,22.9345]
[1727813967118,6.9645,143.59,143.53,15.9676]
[1727813967315,43.776884,143.66,143.53,15.9676]
[1727813967522,6.9655,143.57,143.53,15.9676]
[1727813967709,43.776884,143.63,143.53,15.9676]
[1727813967916,6.9652,143.57,143.53,15.9676]
[1727813968117,43.776884,143.63,143.48,16.286048]
[1727813968307,6.9652,143.57,143.51,6.968]
[1727813968505,43.776884,143.6,143.48,16.286048]
[1727813968712,6.9658,143.56,143.5,6.9685]
[1727813968914,6.9652,143.57,143.5,6.9685]
[1727813969114,6.9657,143.56,143.5,6.9685]
[1727813969330,43.776884,143.6,143.48,16.286048]
[1727813969512,34.8118,143.63,143.48,16.286048]
[1727813969513,43.776884,143.57,143.48,16.286048]
[1727813969830,43.776884,143.57,143.48,23.255548]
[1727813969831,6.9671,143.54,143.48,23.255548]
[1727813970223,43.776884,143.57,143.48,16.286048]
[1727813970408,6.9691,143.49,143.48,0.318448]
[1727813970726,50.745984,143.49,143.48,0.318448]
[1727813970925,20.0,143.52,143.48,0.318448]
[1727813971117,23.776884,143.56,143.5,6.9684]
[1727813971314,20.0,143.55,143.48,0.318448]
[1727813971513,34.8118,143.63,143.48,17.742248]
[1727813971726,17.406,143.63,143.51,17.4198]
[1727813972130,6.9659,143.56,143.51,24.3879]
[1727813972358,17.406,143.63,143.51,17.4198]
[1727813972631,17.406,143.63,143.52,6.9671]
[1727813972833,6.9652,143.57,143.51,24.3875]
[1727813973006,6.9643,143.59,143.53,6.9671]
[1727813973204,17.4093,143.61,143.51,17.4198]
[1727813973407,6.9642,143.59,143.54,6.9666]
[1727813973832,6.9633,143.61,143.55,6.9659]
[1727813974043,6.9649,143.58,143.52,15.6357]
[1727813974328,17.407,143.63,143.52,33.0537]
[1727813974512,6.9637,143.61,143.52,15.6357]
[1727813974716,6.9637,143.61,143.56,6.9656]
[1727813974904,6.9643,143.59,143.54,24.3821]
[1727813975336,6.9638,143.6,143.55,6.9661]
[1727813976155,20.0,143.63,143.55,6.9661]
[1727813976446,6.9637,143.61,143.55,6.9657]
[1727813977044,20.0,143.63,143.55,6.9657]
[1727813977245,6.9643,143.59,143.54,24.3821]
[1727813978026,6.9638,143.6,143.54,24.3821]
[1727813978227,6.9638,143.6,143.54,17.4155]
[1727813978535,6.9643,143.59,143.54,24.3821]
[1727813978727,23.776884,143.6,143.52,15.6357]
[1727813978930,6.9662,143.55,143.52,15.6357]
[1727813979145,20.0,143.61,143.47,15.0011]
[1727813979334,6.9677,143.52,143.48,17.742148]
[1727813979636,17.4128,143.58,143.48,17.742148]
[1727813979637,43.776884,143.57,143.48,17.742148]
[1727813979843,6.9677,143.52,143.48,17.742148]
[1727813980052,6.9681,143.52,143.48,0.318448]
[1727813980541,6.9671,143.53,143.48,7.287848]
[1727813981058,6.3857,143.6,143.48,0.318448]
[1727813981231,6.9662,143.55,143.49,24.3911]
[1727813981428,0.55905957,143.62,143.48,0.318448]
[1727813981645,17.96615957,143.62,143.52,17.4191]
[1727813981957,17.96615957,143.62,143.54,6.9662]
[1727813981958,6.9643,143.59,143.54,6.9662]
[1727813982139,17.96615957,143.62,143.52,17.4191]
[1727813982345,6.9648,143.58,143.54,6.9666]
[1727813982547,7.27683514,143.65,143.55,6.9661]
[1727813982548,6.9638,143.6,143.55,6.9661]
[1727813982742,6.9636,143.61,143.56,6.9656]
[1727813982948,6.9639,143.6,143.55,6.9657]
[1727813983253,6.9619,143.64,143.59,6.9641]
[1727813983450,0.55905957,143.69,143.57,17.4127]
[1727813983758,0.55905957,143.69,143.59,6.9642]
[1727813983931,6.9639,143.6,143.55,22.2552]
[1727813984131,34.8034,143.67,143.55,15.2895]
[1727813984132,17.4049,143.64,143.55,15.2895]
[1727813984432,6.9638,143.6,143.55,22.2556]
[1727813984746,6.9648,143.58,143.55,15.2895]
[1727813984951,43.776884,143.61,143.55,15.2895]
[1727813985139,6.9648,143.58,143.55,15.2895]
[1727813985454,6.9643,143.59,143.55,15.2895]
[1727813985651,20.0,143.63,143.55,15.2895]
[1727813985855,6.9641,143.6,143.55,22.2554]
[1727813986234,6.9633,143.61,143.57,6.9652]
[1727813986543,0.55905957,143.69,143.55,15.2895]
[1727813986753,6.9619,143.64,143.57,17.4127]
[1727813987049,6.9619,143.64,143.55,15.2895]
[1727813987050,17.4065,143.63,143.55,15.2895]
[1727813987436,6.9642,143.59,143.55,22.2556]
[1727813987756,6.9643,143.59,143.55,22.2556]
[1727813988164,6.9633,143.61,143.55,32.7044]
[1727813988331,17.4052,143.64,143.55,15.2895]
[1727813988533,6.9657,143.56,143.55,15.2895]
[1727813989329,6.9652,143.57,143.55,15.2895]
[1727813989563,6.9657,143.56,143.55,15.2895]
[1727813989936,54.8118,143.63,143.5,22.7447]
[1727813990458,6.9659,143.56,143.51,6.9677]
[1727813990660,6.9676,143.52,143.5,22.7447]
[1727813990855,43.776884,143.58,143.5,22.7447]
[1727813991056,6.9671,143.53,143.5,22.7447]
[1727813992064,17.4137,143.57,143.5,22.7447]
[1727813992065,20.0,143.58,143.51,6.9681]
[1727813992441,6.9657,143.56,143.51,6.9681]
[1727813992656,6.9657,143.56,143.52,6.9675]
[1727813993168,17.4099,143.6,143.53,6.9671]
[1727813993468,6.9653,143.57,143.52,6.9675]
[1727813994560,24.68081585,143.63,143.5,22.7447]
[1727813994746,6.9631,143.62,143.57,6.9651]
[1727813995068,41.54365957,143.7,143.53,34.8352]
[1727813995069,6.9638,143.6,143.53,34.8352]
[1727813995238,6.9638,143.6,143.54,17.416]
[1727813995461,17.4052,143.64,143.54,17.416]
[1727813995662,6.9643,143.59,143.55,6.9661]
[1727813995872,20.0,143.61,143.5,22.7447]
[1727813996166,6.9657,143.56,143.52,6.9675]
[1727813996363,20.0,143.61,143.53,18.81007726]
[1727813996576,20.0,143.63,143.53,17.4168]
[1727813996975,6.9646,143.59,143.54,6.9666]
[1727813997184,37.4062,143.63,143.54,6.9666]
[1727813997185,6.9649,143.58,143.54,6.9666]
[1727813997355,6.9646,143.59,143.54,6.9666]
[1727813997856,20.0,143.63,143.53,1.393049]
[1727813998063,20.0,143.63,143.56,24.3794]
[1727813998356,6.9638,143.6,143.56,17.4138]
[1727813998776,6.9647,143.58,143.53,24.3841]
[1727813998987,23.776884,143.6,143.5,22.7447]
[1727813999165,6.9653,143.57,143.53,6.967]
[1727813999479,20.0,143.61,143.53,6.967]
[1727813999656,20.0,143.61,143.52,17.4185]
[1727814000058,6.9649,143.58,143.53,6.9668]
[1727814000349,6.9632,143.62,143.57,6.9652]
[1727814000571,20.0,143.65,143.56,17.4135]